[Event "Live Chess"]
[Site "Chess.com"]
[Date "2024.06.02"]
[Round "-"]
[White "gmnorfolk"]
[Black "blunderabit"]
[Result "1-0"]
[WhiteElo "2135"]
[BlackElo "1774"]
[TimeControl "300"]
[EndTime "16:13:34 PDT"]
[Termination "gmnorfolk won on time"]

1. d4 {[%clk 0:04:56.7]} 1... d5 {[%clk 0:04:53.5]} 2. Nf3 {[%clk 0:04:51.4]}
2... Nf6 {[%clk 0:04:51]} 3. c4 {[%clk 0:04:44.9]} 3... dxc4 {[%clk 0:04:48.7]}
4. e3 {[%clk 0:04:42.9]} 4... b5 {[%clk 0:04:48.2]} 5. a4 {[%clk 0:04:40.3]}
5... b4 {[%clk 0:04:47.5]} 6. Bxc4 {[%clk 0:04:37.4]} 6... e6 {[%clk 0:04:47]}
7. O-O {[%clk 0:04:33.7]} 7... Be7 {[%clk 0:04:46.1]} 8. Ne5 {[%clk 0:04:27.2]}
8... Bb7 {[%clk 0:04:43.7]} 9. Qb3 {[%clk 0:04:26.1]} 9... Nbd7 {[%clk
0:04:16.6]} 10. f4 {[%clk 0:04:19.3]} 10... Nb6 {[%clk 0:04:04.5]} 11. Bb5+
{[%clk 0:04:13]} 11... Kf8 {[%clk 0:03:23]} 12. f5 {[%clk 0:03:58.1]} 12... Qd5
{[%clk 0:03:16.3]} 13. Qxd5 {[%clk 0:03:54.3]} 13... Bxd5 {[%clk 0:03:12.2]} 14.
fxe6 {[%clk 0:03:53.5]} 14... Bxe6 {[%clk 0:03:05.5]} 15. a5 {[%clk 0:03:51.5]}
15... Nbd5 {[%clk 0:03:00.9]} 16. e4 {[%clk 0:03:47.7]} 16... Nxe4 {[%clk
0:02:56.4]} 17. Bc6 {[%clk 0:03:38.8]} 17... Rd8 {[%clk 0:02:43.8]} 18. a6
{[%clk 0:03:34.8]} 18... Ndf6 {[%clk 0:02:03.6]} 19. Be3 {[%clk 0:03:21.7]}
19... Bd5 {[%clk 0:01:59.8]} 20. Bb7 {[%clk 0:03:08]} 20... c5 {[%clk
0:01:18.4]} 21. Ra5 {[%clk 0:02:41.8]} 21... cxd4 {[%clk 0:00:56.5]} 22. Bxd4
{[%clk 0:02:35.7]} 22... g6 {[%clk 0:00:28.9]} 23. Bxd5 {[%clk 0:02:29.2]} 23...
Rxd5 {[%clk 0:00:21.2]} 24. Rxd5 {[%clk 0:02:26.3]} 24... Nxd5 {[%clk
0:00:20.4]} 25. Rxf7+ {[%clk 0:02:24.5]} 25... Ke8 {[%clk 0:00:17.9]} 26. Rf1
{[%clk 0:01:48.3]} 26... Rf8 {[%clk 0:00:13.4]} 27. Rc1 {[%clk 0:01:44.7]} 27...
Nd6 {[%clk 0:00:02.4]} 28. Nd2 {[%clk 0:01:37.2]} 1-0

[Event "Live Chess"]
[Site "Chess.com"]
[Date "2024.06.02"]
[Round "-"]
[White "Outspanner"]
[Black "IgorSchukin"]
[Result "0-1"]
[WhiteElo "1509"]
[BlackElo "1737"]
[TimeControl "300"]
[EndTime "16:14:21 PDT"]
[Termination "IgorSchukin won by resignation"]

1. d4 {[%clk 0:04:56.6]} 1... d5 {[%clk 0:04:58.9]} 2. Bg5 {[%clk 0:04:54.5]}
2... Nf6 {[%clk 0:04:56.8]} 3. Bxf6 {[%clk 0:04:53]} 3... exf6 {[%clk
0:04:55.6]} 4. e3 {[%clk 0:04:47.1]} 4... Bd6 {[%clk 0:04:54.4]} 5. c4 {[%clk
0:04:44.4]} 5... c6 {[%clk 0:04:51.5]} 6. c5 {[%clk 0:04:41.1]} 6... Bc7 {[%clk
0:04:49.7]} 7. Bd3 {[%clk 0:04:33.7]} 7... O-O {[%clk 0:04:46.5]} 8. Qh5 {[%clk
0:04:10.7]} 8... g6 {[%clk 0:04:43.8]} 9. Qh6 {[%clk 0:04:07.2]} 9... Re8 {[%clk
0:04:41.6]} 10. h4 {[%clk 0:04:03.3]} 10... Qe7 {[%clk 0:04:40.2]} 11. h5 {[%clk
0:04:00.5]} 11... Qf8 {[%clk 0:04:39.4]} 12. Qxf8+ {[%clk 0:03:52.5]} 12... Rxf8
{[%clk 0:04:37.7]} 13. h6 {[%clk 0:03:49.9]} 13... f5 {[%clk 0:04:28]} 14. f4
{[%clk 0:03:38.4]} 14... Re8 {[%clk 0:04:25.2]} 15. Kd2 {[%clk 0:03:36.9]} 15...
Nd7 {[%clk 0:04:19.8]} 16. Nf3 {[%clk 0:03:32.4]} 16... b6 {[%clk 0:04:17.2]}
17. b4 {[%clk 0:03:24.8]} 17... bxc5 {[%clk 0:04:14.9]} 18. bxc5 {[%clk
0:03:22.8]} 18... Rb8 {[%clk 0:04:10.7]} 19. Nc3 {[%clk 0:03:09.9]} 19... Rb2+
{[%clk 0:04:06.9]} 20. Bc2 {[%clk 0:02:59.2]} 20... Ba5 {[%clk 0:04:01.5]} 21.
Rhe1 {[%clk 0:02:52.3]} 21... Nf6 {[%clk 0:03:56.8]} 22. Rab1 {[%clk 0:02:49.7]}
22... Ne4+ {[%clk 0:03:51.9]} 23. Kc1 {[%clk 0:02:36.7]} 23... Rxb1+ {[%clk
0:03:49.3]} 24. Kxb1 {[%clk 0:02:34.9]} 24... Nxc3+ {[%clk 0:03:46.9]} 25. Kb2
{[%clk 0:02:33]} 25... Na4+ {[%clk 0:03:44]} 26. Bxa4 {[%clk 0:02:28.1]} 26...
Bxe1 {[%clk 0:03:42.9]} 27. Nxe1 {[%clk 0:02:21.9]} 27... Rxe3 {[%clk
0:03:41.2]} 28. Nc2 {[%clk 0:02:16.1]} 28... Re2 {[%clk 0:03:37]} 29. Bxc6
{[%clk 0:02:12.7]} 29... Ba6 {[%clk 0:03:23.8]} 30. Bxd5 {[%clk 0:02:06.9]}
30... Bd3 {[%clk 0:03:22.5]} 31. Bb3 {[%clk 0:02:05.9]} 31... Kf8 {[%clk
0:03:13.8]} 32. Kc3 {[%clk 0:02:00.4]} 32... Bxc2 {[%clk 0:03:07.5]} 33. Bxc2
{[%clk 0:01:58.9]} 33... Rxg2 {[%clk 0:03:04.8]} 34. c6 {[%clk 0:01:52.2]} 34...
Ke7 {[%clk 0:03:03]} 35. d5 {[%clk 0:01:49.1]} 35... Kd6 {[%clk 0:03:01.8]} 36.
a4 {[%clk 0:01:32.7]} 36... Rf2 {[%clk 0:02:37.7]} 37. Bb3 {[%clk 0:01:30.4]}
37... Rxf4 {[%clk 0:02:35.9]} 0-1

[Event "Live Chess"]
[Site "Chess.com"]
[Date "2024.06.02"]
[Round "-"]
[White "KwikPhoenix"]
[Black "koekoekoe"]
[Result "1-0"]
[WhiteElo "2445"]
[BlackElo "1965"]
[TimeControl "300"]
[EndTime "16:14:30 PDT"]
[Termination "KwikPhoenix won by resignation"]

1. g3 {[%clk 0:04:59.1]} 1... d5 {[%clk 0:04:58.8]} 2. Bg2 {[%clk 0:04:59]} 2...
Nf6 {[%clk 0:04:58.1]} 3. Nf3 {[%clk 0:04:58.5]} 3... Bf5 {[%clk 0:04:57.3]} 4.
e3 {[%clk 0:04:58.1]} 4... e6 {[%clk 0:04:56.9]} 5. d4 {[%clk 0:04:57.8]} 5...
c6 {[%clk 0:04:56.4]} 6. O-O {[%clk 0:04:57.7]} 6... Be7 {[%clk 0:04:54.7]} 7.
Nbd2 {[%clk 0:04:57.4]} 7... Nbd7 {[%clk 0:04:54.3]} 8. b3 {[%clk 0:04:57.3]}
8... O-O {[%clk 0:04:52.7]} 9. Bb2 {[%clk 0:04:57.2]} 9... Nb6 {[%clk 0:04:52]}
10. c4 {[%clk 0:04:57.1]} 10... dxc4 {[%clk 0:04:50.9]} 11. bxc4 {[%clk
0:04:56.2]} 11... Ne4 {[%clk 0:04:42.2]} 12. Qb3 {[%clk 0:04:51.8]} 12... Rb8
{[%clk 0:04:23.1]} 13. a4 {[%clk 0:04:50.1]} 13... Nxd2 {[%clk 0:04:17.5]} 14.
Nxd2 {[%clk 0:04:50]} 14... Bf6 {[%clk 0:04:12.5]} 15. a5 {[%clk 0:04:48.2]}
15... Nd7 {[%clk 0:04:11.3]} 16. Nf3 {[%clk 0:04:41.6]} 16... Be4 {[%clk
0:03:56.6]} 17. Rfd1 {[%clk 0:04:38.1]} 17... Qc7 {[%clk 0:03:51.5]} 18. Nd2
{[%clk 0:04:34.2]} 18... Bxg2 {[%clk 0:03:50]} 19. Kxg2 {[%clk 0:04:34.1]} 19...
c5 {[%clk 0:03:48.4]} 20. Nf3 {[%clk 0:04:30.1]} 20... cxd4 {[%clk 0:03:45.1]}
21. exd4 {[%clk 0:04:28.6]} 21... Rfc8 {[%clk 0:03:42.1]} 22. Rdc1 {[%clk
0:04:25.1]} 22... Qd6 {[%clk 0:03:34.2]} 23. Ba3 {[%clk 0:04:18.1]} 23... Qa6
{[%clk 0:03:29.8]} 24. Bb2 {[%clk 0:04:08.9]} 24... Rc7 {[%clk 0:03:19.2]} 25.
d5 {[%clk 0:03:45.1]} 25... Bxb2 {[%clk 0:03:12]} 26. Qxb2 {[%clk 0:03:45]}
26... Rxc4 {[%clk 0:02:55.8]} 27. dxe6 {[%clk 0:03:40.5]} 27... Qxe6 {[%clk
0:02:51.9]} 28. Rxc4 {[%clk 0:03:34.7]} 28... Qxc4 {[%clk 0:02:51.8]} 29. a6
{[%clk 0:03:33.3]} 29... bxa6 {[%clk 0:02:44.2]} 30. Qd2 {[%clk 0:03:32.8]}
30... Nf6 {[%clk 0:02:33.3]} 31. Qd6 {[%clk 0:03:27]} 31... h6 {[%clk
0:02:13.9]} 32. Qxb8+ {[%clk 0:03:24.4]} 32... Kh7 {[%clk 0:02:12.8]} 33. Qxa7
{[%clk 0:03:22.2]} 33... Ng4 {[%clk 0:02:08.7]} 34. Qxa6 {[%clk 0:03:15.8]}
34... Qc2 {[%clk 0:02:01.8]} 35. Qb6 {[%clk 0:03:09]} 35... Qe2 {[%clk
0:01:50.8]} 36. h3 {[%clk 0:03:03.7]} 36... Nf6 {[%clk 0:01:49.7]} 37. Qe3
{[%clk 0:03:02]} 37... Qc4 {[%clk 0:01:48.3]} 38. Rd1 {[%clk 0:02:58.1]} 38...
Qc6 {[%clk 0:01:46.9]} 39. Rc1 {[%clk 0:02:56.1]} 39... Qa4 {[%clk 0:01:41.9]}
40. Qc5 {[%clk 0:02:51.9]} 40... Qe4 {[%clk 0:01:38.6]} 41. Qc2 {[%clk
0:02:50.9]} 41... g5 {[%clk 0:01:35.9]} 42. Qxe4+ {[%clk 0:02:50]} 1-0

[Event "Live Chess"]
[Site "Chess.com"]
[Date "2024.06.02"]
[Round "-"]
[White "CCGoodKnightRookie"]
[Black "toog"]
[Result "0-1"]
[WhiteElo "2305"]
[BlackElo "2603"]
[TimeControl "300"]
[EndTime "16:14:38 PDT"]
[Termination "toog won by resignation"]

1. d4 {[%clk 0:04:58.5]} 1... d6 {[%clk 0:04:52.5]} 2. e4 {[%clk 0:04:57.3]}
2... e5 {[%clk 0:04:47.8]} 3. Nf3 {[%clk 0:04:47.1]} 3... Nf6 {[%clk 0:04:39.4]}
4. dxe5 {[%clk 0:04:43.1]} 4... Nxe4 {[%clk 0:04:38.7]} 5. Bc4 {[%clk
0:04:40.7]} 5... Nc5 {[%clk 0:04:13]} 6. O-O {[%clk 0:04:32.9]} 6... Be6 {[%clk
0:04:10]} 7. Bxe6 {[%clk 0:04:24.5]} 7... Nxe6 {[%clk 0:04:09.9]} 8. Nc3 {[%clk
0:04:18.1]} 8... Nc6 {[%clk 0:04:07]} 9. Re1 {[%clk 0:04:15.3]} 9... dxe5 {[%clk
0:04:05.4]} 10. Qxd8+ {[%clk 0:04:11.3]} 10... Rxd8 {[%clk 0:04:05.3]} 11. Nxe5
{[%clk 0:04:10.9]} 11... Nxe5 {[%clk 0:04:04.3]} 12. Rxe5 {[%clk 0:04:10.8]}
12... Bb4 {[%clk 0:04:01.7]} 13. Be3 {[%clk 0:04:02.7]} 13... Bxc3 {[%clk
0:03:59.9]} 14. bxc3 {[%clk 0:04:01.1]} 14... b6 {[%clk 0:03:59.1]} 15. a4
{[%clk 0:03:55.7]} 15... O-O {[%clk 0:03:49.1]} 16. a5 {[%clk 0:03:52.3]} 16...
Rd6 {[%clk 0:03:46.8]} 17. axb6 {[%clk 0:03:48.1]} 17... axb6 {[%clk 0:03:46.7]}
18. g3 {[%clk 0:03:35.9]} 18... Rfd8 {[%clk 0:03:42.1]} 19. Kg2 {[%clk
0:03:30.2]} 19... Rc6 {[%clk 0:03:40.4]} 20. Ra3 {[%clk 0:03:28.2]} 20... h6
{[%clk 0:03:37.6]} 21. h4 {[%clk 0:03:22.4]} 21... Rdd6 {[%clk 0:03:30.9]} 22.
Re4 {[%clk 0:03:20.1]} 22... Rd5 {[%clk 0:03:27]} 23. c4 {[%clk 0:03:11]} 23...
Ra5 {[%clk 0:03:25.1]} 24. Bc1 {[%clk 0:02:52.5]} 24... Rac5 {[%clk 0:03:04.4]}
25. Ra8+ {[%clk 0:02:39.6]} 25... Kh7 {[%clk 0:03:02.5]} 26. Ra4 {[%clk
0:02:39.2]} 26... Rf5 {[%clk 0:02:58.5]} 27. Be3 {[%clk 0:02:32.4]} 27... Ra5
{[%clk 0:02:54.5]} 28. Rxa5 {[%clk 0:02:18.8]} 28... bxa5 {[%clk 0:02:54.4]} 29.
Re5 {[%clk 0:02:18.3]} 29... Ra6 {[%clk 0:02:52.6]} 30. f4 {[%clk 0:02:08.8]}
30... a4 {[%clk 0:02:48.4]} 31. f5 {[%clk 0:02:07.6]} 31... Nd8 {[%clk
0:02:43.8]} 32. Rc5 {[%clk 0:01:41.4]} 32... Nc6 {[%clk 0:02:25.4]} 33. Bd2
{[%clk 0:01:38.5]} 33... a3 {[%clk 0:02:21.9]} 34. Bc3 {[%clk 0:01:36.9]} 34...
a2 {[%clk 0:02:21]} 35. Ba1 {[%clk 0:01:36.2]} 35... Kg8 {[%clk 0:02:16.5]} 36.
h5 {[%clk 0:01:05.3]} 36... f6 {[%clk 0:02:08.7]} 37. Kf3 {[%clk 0:01:00.8]}
37... Nb4 {[%clk 0:02:04.1]} 38. Rxc7 {[%clk 0:00:58.9]} 38... Nxc2 {[%clk
0:02:02.6]} 39. Rc8+ {[%clk 0:00:58.4]} 39... Kh7 {[%clk 0:02:00.5]} 40. Bc3
{[%clk 0:00:54.3]} 40... Ra3 {[%clk 0:01:54.8]} 0-1

[Event "Live Chess"]
[Site "Chess.com"]
[Date "2024.06.02"]
[Round "-"]
[White "jk0110"]
[Black "StoreySniper"]
[Result "0-1"]
[WhiteElo "1225"]
[BlackElo "2529"]
[TimeControl "300"]
[EndTime "16:14:59 PDT"]
[Termination "StoreySniper won by resignation"]

1. e4 {[%clk 0:04:57.3]} 1... g6 {[%clk 0:04:59.5]} 2. d4 {[%clk 0:04:53.8]}
2... Bg7 {[%clk 0:04:59.1]} 3. Nf3 {[%clk 0:04:52.4]} 3... c5 {[%clk 0:04:58.6]}
4. Bc4 {[%clk 0:04:47.9]} 4... cxd4 {[%clk 0:04:52.8]} 5. c3 {[%clk 0:04:46.9]}
5... d5 {[%clk 0:04:39.5]} 6. Bxd5 {[%clk 0:04:41.2]} 6... Nf6 {[%clk
0:04:38.5]} 7. Qxd4 {[%clk 0:04:26.8]} 7... O-O {[%clk 0:04:32.6]} 8. Bg5 {[%clk
0:04:11.2]} 8... Nxd5 {[%clk 0:04:10.1]} 9. Qxd5 {[%clk 0:03:57.4]} 9... Qb6
{[%clk 0:04:07.5]} 10. O-O {[%clk 0:03:46.6]} 10... Qxb2 {[%clk 0:04:04.2]} 11.
Nbd2 {[%clk 0:03:39.9]} 11... Nc6 {[%clk 0:04:02.2]} 12. Rac1 {[%clk 0:03:20.5]}
12... Be6 {[%clk 0:03:58.7]} 13. Qd3 {[%clk 0:03:07.4]} 13... Rfd8 {[%clk
0:03:55.1]} 14. Qe3 {[%clk 0:03:01.3]} 14... Qxa2 {[%clk 0:03:44.6]} 15. Bh6
{[%clk 0:02:57.8]} 15... Bg4 {[%clk 0:03:13]} 16. Bxg7 {[%clk 0:02:49]} 16...
Kxg7 {[%clk 0:03:11.9]} 17. Ng5 {[%clk 0:02:47.4]} 17... Qxd2 {[%clk 0:03:05.2]}
18. Nxf7 {[%clk 0:02:01.7]} 18... Kxf7 {[%clk 0:02:52.6]} 19. h3 {[%clk
0:01:35.9]} 19... Be6 {[%clk 0:02:45.1]} 20. Qf3+ {[%clk 0:01:30.7]} 20... Kg7
{[%clk 0:02:39.7]} 21. Rcd1 {[%clk 0:01:26.4]} 21... Qg5 {[%clk 0:02:34.2]} 22.
Rxd8 {[%clk 0:01:15.4]} 22... Rxd8 {[%clk 0:02:31.9]} 23. c4 {[%clk 0:01:06.5]}
23... Ne5 {[%clk 0:02:24.3]} 24. Qc3 {[%clk 0:00:59.3]} 24... Rd3 {[%clk
0:02:21.6]} 25. f4 {[%clk 0:00:54.1]} 25... Rxc3 {[%clk 0:02:13.7]} 26. fxg5
{[%clk 0:00:52]} 26... Bxc4 {[%clk 0:02:11.6]} 27. Ra1 {[%clk 0:00:39.5]} 27...
a6 {[%clk 0:02:09.6]} 28. Ra5 {[%clk 0:00:34.7]} 28... Nc6 {[%clk 0:02:07.2]}
29. Rc5 {[%clk 0:00:28.9]} 29... a5 {[%clk 0:02:06.4]} 30. Kh2 {[%clk
0:00:22.3]} 30... a4 {[%clk 0:02:05.4]} 0-1

[Event "Live Chess"]
[Site "Chess.com"]
[Date "2024.06.02"]
[Round "-"]
[White "EPotapov05"]
[Black "gobbles19"]
[Result "0-1"]
[WhiteElo "1804"]
[BlackElo "2280"]
[TimeControl "300"]
[EndTime "16:15:01 PDT"]
[Termination "gobbles19 won by resignation"]

1. d4 {[%clk 0:04:55.6]} 1... Nf6 {[%clk 0:04:57.8]} 2. c4 {[%clk 0:04:54]} 2...
e6 {[%clk 0:04:56.8]} 3. Nc3 {[%clk 0:04:53]} 3... c5 {[%clk 0:04:56.4]} 4. d5
{[%clk 0:04:51.1]} 4... exd5 {[%clk 0:04:55.9]} 5. cxd5 {[%clk 0:04:50.4]} 5...
d6 {[%clk 0:04:55.6]} 6. e4 {[%clk 0:04:49.5]} 6... g6 {[%clk 0:04:55.1]} 7. Nf3
{[%clk 0:04:45.6]} 7... Bg7 {[%clk 0:04:54.6]} 8. Be2 {[%clk 0:04:40.8]} 8...
O-O {[%clk 0:04:53.7]} 9. O-O {[%clk 0:04:39.7]} 9... Re8 {[%clk 0:04:53.3]} 10.
Qc2 {[%clk 0:04:35.9]} 10... Na6 {[%clk 0:04:52.1]} 11. a3 {[%clk 0:04:34.2]}
11... Nc7 {[%clk 0:04:51.3]} 12. a4 {[%clk 0:04:32.7]} 12... b6 {[%clk
0:04:47.3]} 13. Re1 {[%clk 0:04:31.5]} 13... a6 {[%clk 0:04:46.5]} 14. Bd3
{[%clk 0:04:28.1]} 14... Rb8 {[%clk 0:04:44.1]} 15. h3 {[%clk 0:04:26.9]} 15...
b5 {[%clk 0:04:42.9]} 16. axb5 {[%clk 0:04:26]} 16... axb5 {[%clk 0:04:42.8]}
17. Bf4 {[%clk 0:04:20.6]} 17... c4 {[%clk 0:04:20.8]} 18. Bf1 {[%clk
0:04:16.3]} 18... Na6 {[%clk 0:03:37.3]} 19. Nd2 {[%clk 0:03:44.3]} 19... Nb4
{[%clk 0:03:31]} 20. Qb1 {[%clk 0:03:42.6]} 20... Nh5 {[%clk 0:03:18.4]} 21. Bh2
{[%clk 0:03:37.2]} 21... Be5 {[%clk 0:03:17.1]} 22. Bxe5 {[%clk 0:03:34.1]}
22... Rxe5 {[%clk 0:03:17]} 23. Kh1 {[%clk 0:03:31]} 23... Nf4 {[%clk
0:03:13.5]} 24. Nf3 {[%clk 0:03:20]} 24... Re8 {[%clk 0:03:10.7]} 25. Ra7 {[%clk
0:03:11.6]} 25... Nbd3 {[%clk 0:03:05.6]} 26. Bxd3 {[%clk 0:03:07.8]} 26... Nxd3
{[%clk 0:03:05.5]} 27. Rf1 {[%clk 0:03:04.2]} 27... Qb6 {[%clk 0:03:04.3]} 28.
Ra1 {[%clk 0:02:58.4]} 28... Nxf2+ {[%clk 0:03:03]} 29. Kh2 {[%clk 0:02:57.7]}
29... Nd3 {[%clk 0:02:58.3]} 30. Qc2 {[%clk 0:02:56]} 30... Bd7 {[%clk
0:02:33.5]} 31. b3 {[%clk 0:02:54.8]} 31... Rbc8 {[%clk 0:01:54.4]} 32. bxc4
{[%clk 0:02:52.6]} 32... bxc4 {[%clk 0:01:53.3]} 33. Rfb1 {[%clk 0:02:45.6]}
33... Qe3 {[%clk 0:01:52.2]} 34. Re1 {[%clk 0:02:36.1]} 34... Qf4+ {[%clk
0:01:50.8]} 35. Kg1 {[%clk 0:02:33.9]} 35... Bxh3 {[%clk 0:01:49.2]} 36. gxh3
{[%clk 0:02:27.9]} 36... Qxf3 {[%clk 0:01:46.6]} 37. Rf1 {[%clk 0:02:24.7]}
37... Qxh3 {[%clk 0:01:40]} 0-1

[Event "Live Chess"]
[Site "Chess.com"]
[Date "2024.06.02"]
[Round "-"]
[White "nigelst"]
[Black "oscalik"]
[Result "1-0"]
[WhiteElo "1716"]
[BlackElo "2270"]
[TimeControl "300"]
[EndTime "16:15:04 PDT"]
[Termination "nigelst won by checkmate"]

1. e4 {[%clk 0:04:56.8]} 1... c5 {[%clk 0:04:58.5]} 2. Nf3 {[%clk 0:04:56]} 2...
Nf6 {[%clk 0:04:57.2]} 3. e5 {[%clk 0:04:51.2]} 3... Nd5 {[%clk 0:04:55.8]} 4.
c3 {[%clk 0:04:49.7]} 4... d6 {[%clk 0:04:53.8]} 5. d4 {[%clk 0:04:48.5]} 5...
cxd4 {[%clk 0:04:53.1]} 6. cxd4 {[%clk 0:04:47.1]} 6... Nc6 {[%clk 0:04:52.6]}
7. Nc3 {[%clk 0:04:44.5]} 7... Nxc3 {[%clk 0:04:50.6]} 8. bxc3 {[%clk
0:04:42.9]} 8... dxe5 {[%clk 0:04:50.3]} 9. d5 {[%clk 0:04:38.7]} 9... e4 {[%clk
0:04:32.1]} 10. dxc6 {[%clk 0:04:21.7]} 10... Qxd1+ {[%clk 0:04:29.2]} 11. Kxd1
{[%clk 0:04:20.5]} 11... exf3 {[%clk 0:04:29.1]} 12. Bb5 {[%clk 0:04:14.6]}
12... Kd8 {[%clk 0:03:56.4]} 13. Bf4 {[%clk 0:03:53]} 13... fxg2 {[%clk
0:03:47.1]} 14. c7# {[%clk 0:03:47]} 1-0

[Event "Live Chess"]
[Site "Chess.com"]
[Date "2024.06.02"]
[Round "-"]
[White "viktor_forever1994"]
[Black "Sir_Sigmund"]
[Result "0-1"]
[WhiteElo "1374"]
[BlackElo "1850"]
[TimeControl "300"]
[EndTime "16:15:33 PDT"]
[Termination "Sir_Sigmund won on time"]

1. e4 {[%clk 0:04:58.6]} 1... e6 {[%clk 0:04:58]} 2. d4 {[%clk 0:04:56.9]} 2...
d5 {[%clk 0:04:57.1]} 3. exd5 {[%clk 0:04:55.7]} 3... exd5 {[%clk 0:04:56.7]} 4.
Nf3 {[%clk 0:04:54.3]} 4... Be6 {[%clk 0:04:54.1]} 5. h3 {[%clk 0:04:53.2]} 5...
Bd6 {[%clk 0:04:53.6]} 6. c4 {[%clk 0:04:46.5]} 6... c6 {[%clk 0:04:51.8]} 7.
Nc3 {[%clk 0:04:35.7]} 7... dxc4 {[%clk 0:04:48.3]} 8. Qa4 {[%clk 0:04:13.6]}
8... b5 {[%clk 0:04:37.6]} 9. Qc2 {[%clk 0:04:11.8]} 9... Nf6 {[%clk 0:04:33.1]}
10. Be2 {[%clk 0:04:07.9]} 10... Nbd7 {[%clk 0:04:30.5]} 11. Bg5 {[%clk
0:04:06.1]} 11... h6 {[%clk 0:04:28.5]} 12. Bh4 {[%clk 0:04:00.5]} 12... g5
{[%clk 0:04:24.5]} 13. Bg3 {[%clk 0:03:59.7]} 13... Bxg3 {[%clk 0:04:20.3]} 14.
fxg3 {[%clk 0:03:59.5]} 14... Qc7 {[%clk 0:04:18.7]} 15. Kf2 {[%clk 0:03:20.2]}
15... O-O-O {[%clk 0:04:08.2]} 16. Rhe1 {[%clk 0:03:09.8]} 16... Nb6 {[%clk
0:03:59.9]} 17. Rad1 {[%clk 0:02:56.8]} 17... Bd5 {[%clk 0:03:46.8]} 18. Qf5+
{[%clk 0:02:44.6]} 18... Nfd7 {[%clk 0:03:41.2]} 19. Ne5 {[%clk 0:02:37.5]}
19... f6 {[%clk 0:03:28.6]} 20. Ng6 {[%clk 0:02:15.3]} 20... Rhe8 {[%clk
0:03:04.5]} 21. Bg4 {[%clk 0:02:12.9]} 21... Rxe1 {[%clk 0:02:54.6]} 22. Rxe1
{[%clk 0:02:12.8]} 22... Qd6 {[%clk 0:02:51.6]} 23. Re7 {[%clk 0:01:19.2]} 23...
b4 {[%clk 0:02:42.2]} 24. Nxd5 {[%clk 0:00:57.2]} 24... Nxd5 {[%clk 0:02:36.4]}
25. Re2 {[%clk 0:00:38.2]} 25... Nb6 {[%clk 0:02:23.4]} 26. Ne7+ {[%clk
0:00:34.9]} 26... Kc7 {[%clk 0:02:18.7]} 27. a3 {[%clk 0:00:27.5]} 27... Qxd4+
{[%clk 0:02:15.1]} 28. Re3 {[%clk 0:00:17]} 28... Ne5 {[%clk 0:02:03.8]} 29. Bf3
{[%clk 0:00:03.6]} 29... Nd3+ {[%clk 0:01:49.6]} 0-1

[Event "Live Chess"]
[Site "Chess.com"]
[Date "2024.06.02"]
[Round "-"]
[White "Rusty_Bridges"]
[Black "dmitro74"]
[Result "0-1"]
[WhiteElo "1472"]
[BlackElo "1663"]
[TimeControl "300"]
[EndTime "16:15:36 PDT"]
[Termination "dmitro74 won by resignation"]

1. e4 {[%clk 0:04:55.5]} 1... e6 {[%clk 0:04:59]} 2. d4 {[%clk 0:04:53.7]} 2...
d5 {[%clk 0:04:58.6]} 3. exd5 {[%clk 0:04:53.2]} 3... exd5 {[%clk 0:04:57.7]} 4.
Nf3 {[%clk 0:04:52.7]} 4... Nf6 {[%clk 0:04:56.8]} 5. Bd3 {[%clk 0:04:51.9]}
5... Bd6 {[%clk 0:04:55.7]} 6. O-O {[%clk 0:04:50.3]} 6... O-O {[%clk 0:04:55]}
7. Bg5 {[%clk 0:04:48.5]} 7... h6 {[%clk 0:04:52.6]} 8. Bh4 {[%clk 0:04:47]}
8... Be6 {[%clk 0:04:49.5]} 9. c3 {[%clk 0:04:44]} 9... Nbd7 {[%clk 0:04:48]}
10. Nbd2 {[%clk 0:04:42.5]} 10... c6 {[%clk 0:04:46.7]} 11. Rc1 {[%clk
0:04:40.2]} 11... Qc7 {[%clk 0:04:45.1]} 12. Bb1 {[%clk 0:04:37.9]} 12... Rfe8
{[%clk 0:04:30]} 13. Qc2 {[%clk 0:04:35.6]} 13... Nf8 {[%clk 0:04:28.3]} 14.
Rfe1 {[%clk 0:04:33]} 14... g5 {[%clk 0:04:21.9]} 15. Nxg5 {[%clk 0:04:29.5]}
15... hxg5 {[%clk 0:04:20.3]} 16. Bxg5 {[%clk 0:04:27.1]} 16... Ne4 {[%clk
0:04:09.5]} 17. Nxe4 {[%clk 0:04:21.5]} 17... dxe4 {[%clk 0:04:02.6]} 18. Qxe4
{[%clk 0:04:14.6]} 18... Bxh2+ {[%clk 0:03:27.4]} 19. Kh1 {[%clk 0:04:09.2]}
19... Bd5 {[%clk 0:03:16.6]} 20. Qg4 {[%clk 0:04:01.3]} 20... Be6 {[%clk
0:02:55.1]} 21. Qh5 {[%clk 0:03:52.4]} 21... Bf4 {[%clk 0:02:47.2]} 22. Bf6
{[%clk 0:03:38.8]} 22... Ng6 {[%clk 0:02:16.2]} 23. Bxg6 {[%clk 0:03:31.6]}
23... fxg6 {[%clk 0:02:15]} 24. Qxg6+ {[%clk 0:03:22.6]} 24... Kf8 {[%clk
0:02:13.3]} 25. Rc2 {[%clk 0:02:45.2]} 25... Qf7 {[%clk 0:02:01.6]} 26. Qxf7+
{[%clk 0:02:32.3]} 26... Kxf7 {[%clk 0:01:59.9]} 27. Bh4 {[%clk 0:02:16.1]}
27... Bf5 {[%clk 0:01:51]} 28. Rce2 {[%clk 0:02:05.9]} 28... Rxe2 {[%clk
0:01:31.2]} 29. Rxe2 {[%clk 0:02:04.6]} 29... Re8 {[%clk 0:01:27.2]} 30. Rxe8
{[%clk 0:01:51.7]} 30... Kxe8 {[%clk 0:01:26.1]} 31. f3 {[%clk 0:01:35.4]} 31...
Bc1 {[%clk 0:01:24.1]} 32. b3 {[%clk 0:01:33.6]} 32... Bd2 {[%clk 0:01:23]} 33.
c4 {[%clk 0:01:31.7]} 33... Bb1 {[%clk 0:01:20.7]} 34. a3 {[%clk 0:01:28.6]}
34... Ba2 {[%clk 0:01:17.5]} 35. g4 {[%clk 0:01:23.3]} 35... Bxb3 {[%clk
0:01:15]} 36. c5 {[%clk 0:01:20.4]} 36... Bc1 {[%clk 0:01:07.5]} 0-1